fUSD/lending_fUSD_20240531
["ID","MTS","AMOUNT","RATE_DAILY","PERIOD"]
[328333541,1717177966672,-1000.0,0.00034691,30]
[328333542,1717177966699,-1000.0,0.00034691,120]
[328333543,1717177966726,-1000.0,0.00034691,30]
[328333544,1717177966750,-1000.0,0.00034691,60]
[328333545,1717177966775,-1000.0,0.00034691,60]
[328333546,1717177966797,-1000.0,0.00034691,30]
[328333547,1717177966820,-1090.48852895,0.00034691,30]
[328333548,1717177966841,-1000.0,0.00034691,30]
[328333549,1717177966864,-1000.0,0.00034691,30]
[328333550,1717177966888,-300.78400418,0.00034691,60]
[328333551,1717177966914,-1000.0,0.00034691,60]
[328333552,1717177966938,-1000.0,0.00034691,120]
[328333553,1717177966960,-1037.0,0.00034691,30]
[328333554,1717177966984,-1000.0,0.00034691,120]
[328333555,1717177967006,-1037.0,0.00034691,30]
[328333556,1717177967030,-1000.0,0.00034691,120]
[328333557,1717177967054,-1037.0,0.00034691,30]
[328333558,1717177967075,-1000.0,0.00034691,30]
[328333559,1717177967097,-1037.0,0.00034691,30]
[328333560,1717177967119,-1000.0,0.00034691,60]
[328333561,1717177967141,-1037.0,0.00034691,30]
[328333562,1717177967163,-1000.0,0.00034691,60]
[328333563,1717177967185,-1000.0,0.00034691,120]
[328333564,1717177967207,-1094.20197645,0.00034691,30]
[328333565,1717177967228,-2062.099999,0.00034691,30]
[328333566,1717177967252,-2000.0,0.00034691,30]
[328333567,1717177967277,-2000.0,0.00034691,30]
[328333568,1717177967300,-2000.0,0.00034691,30]
[328333569,1717177967323,-415.26408476,0.00034691,90]
[328333570,1717177967346,-199.64759217,0.00034691,30]
[328333571,1717177967368,-480.8452291,0.00034691,30]
[328333572,1717177967391,-359.37191079,0.00034691,30]
[328333573,1717177967413,-1511.62713235,0.00034691,30]
[328333574,1717177967436,-830.61698813,0.00034691,30]
[328333575,1717177967461,-745.81896402,0.00034691,120]
[328333576,1717177967483,-695.55261243,0.00034691,30]
[328333577,1717177967506,-453.57014937,0.00034691,30]
[328333578,1717177967532,-572.48880317,0.00034691,30]
[328333579,1717177967554,-182.39524722,0.00034691,120]
[328333580,1717177967576,-174.3633421,0.00034691,120]
[328333581,1717177967599,-437.94142801,0.00034691,30]
[328333582,1717177967622,-919.21005317,0.00034691,120]
[328333583,1717177967647,-1354.89119673,0.00034691,30]
[328333584,1717177967670,-447.44305962,0.00034691,30]
[328333585,1717177967693,-366.73565187,0.00034691,30]
[328333586,1717177967721,-995.44151414,0.00034691,120]
[328333587,1717177967743,-813.59073432,0.00034691,30]
[328333588,1717177967764,-1365.73440941,0.00034691,120]
[328333589,1717177967901,-492.63480337,0.00034691,60]
[328333590,1717177967926,-821.3726536,0.00034691,30]
[328333591,1717177967951,-656.7736589,0.00034691,30]
[328333592,1717177967973,-259.16345392,0.00034691,120]
[328333593,1717177967996,-1330.54458693,0.00034691,120]
[328333594,1717177968017,-883.99635559,0.00034691,30]
[328333595,1717177968042,-966.36254588,0.00034691,60]
[328333596,1717177968063,-1476.5409734,0.00034691,30]
[328333597,1717177968084,-196.53321028,0.00034691,30]
[328333598,1717177968105,-914.01035973,0.00034691,30]
[328333599,1717177968127,-331.55627964,0.00034691,30]
[328333600,1717177968148,-862.86289395,0.00034691,30]
[328333601,1717177968172,-349.24721753,0.00034691,120]
[328333602,1717177968194,-179.20649407,0.00034691,120]
[328333603,1717177968216,-706.50034396,0.00034691,120]
[328333604,1717177968238,-298.14450764,0.00034691,120]
[328333605,1717177968259,-1806.92841978,0.00034691,120]
[328333606,1717177968283,-545.89851395,0.00034691,30]
[328333607,1717177968306,-560.95897607,0.00034691,120]
[328333608,1717177968329,-382.47761467,0.00034691,120]
[328333609,1717177968352,-1353.36790578,0.00034691,120]
[328333610,1717177968375,-1203.96201524,0.00034691,30]
[328333611,1717177968409,-1041.63407233,0.00034691,120]
[328333612,1717177968434,-308.51632692,0.00034691,120]
[328333613,1717177968462,-230.48119511,0.00034691,120]
[328333614,1717177968486,-840.73714614,0.00034691,30]
[328333615,1717177968512,-940.92004151,0.00034691,120]
[328333616,1717177968538,-192.17152311,0.00034691,30]
[328333617,1717177968564,-2766.17202066,0.00034691,120]
[328333618,1717177968590,-296.63201452,0.00034691,120]
[328333619,1717177968616,-340.95126454,0.00034691,30]
[328333620,1717177968639,-399.32069934,0.00034691,120]
[328333621,1717177968663,-398.27301659,0.00034691,120]
[328333622,1717177968687,-251.70650715,0.00034691,30]
[328333623,1717177968716,-244.19726692,0.00034691,120]
[328333624,1717177968740,-1535.76421553,0.00034691,30]
[328333625,1717177968762,-876.10090957,0.00034691,30]
[328333626,1717177968787,-325.6677256,0.00034691,120]
[328333627,1717177968810,-1655.06448039,0.00034691,120]
[328333628,1717177968834,-598.07112113,0.00034691,120]
[328333629,1717177968858,-925.13616734,0.00034691,30]
[328333630,1717177968882,-1385.15335507,0.00034691,30]
[328333631,1717177968904,-1088.19041506,0.00034691,30]
[328333632,1717177968928,-1730.53439561,0.00034691,120]
[328333633,1717177968951,-1015.70205457,0.00034691,120]
[328333634,1717177968974,-328.55477319,0.00034691,30]
[328333635,1717177968998,-18833.64043267,0.00034691,30]
[328333636,1717177969025,-1337.66,0.00034691,60]
[328333637,1717177969046,-1337.66,0.00034691,60]
[328333638,1717177969078,-1337.66,0.00034691,60]
[328333639,1717177969104,-1337.66,0.00034691,60]
[328333640,1717177969126,-1337.66,0.00034691,60]
[328333641,1717177969150,-1337.66,0.00034691,60]
[328333642,1717177969174,-1337.66,0.00034691,60]
[328333643,1717177969198,-1337.66,0.00034691,60]
[328333644,1717177969222,-1337.66,0.00034691,60]
[328333645,1717177969246,-1337.66,0.00034691,60]
[328333646,1717177969270,-1337.66,0.00034691,60]
[328333647,1717177969293,-1337.78427513,0.00034691,60]
[328333648,1717177969318,-1034.299999,0.00034691,30]
[328333649,1717177972471,-176.74823613,0.00033289,30]
[328333650,1717177972526,-900.0,0.00034,35]
[328333651,1717177972570,-150.0,0.00034998,120]
[328333652,1717177972600,-438824.73437691,0.00035,30]
[328333653,1717177972628,-1357.21781299,0.00035,30]
[328333654,1717177972657,-504.02422615,0.00035,30]
[328333655,1717177972686,-1689.56517542,0.00035,30]
[328333656,1717177972716,-900.0,0.00035,36]
[328333657,1717177972743,-200.0,0.00035327,120]
[328333658,1717177972770,-150.0,0.00035812,120]
[328333659,1717177972795,-900.0,0.00036,37]
[328333660,1717177972824,-280.91287027,0.00036301,30]
[328333661,1717177972851,-245.79876149,0.00036301,30]
[328333662,1717177972880,-280.91287027,0.00036466,30]
[328333663,1717177972905,-245.79876149,0.00036466,30]
[328333664,1717177972934,-280.91287027,0.0003663,30]
[328333665,1717177972959,-245.79876149,0.0003663,30]
[328333666,1717177972989,-280.91287027,0.00036767,30]
[328333667,1717177973014,-245.79876149,0.00036767,30]
[328333668,1717177973040,-280.91287027,0.00036932,30]
[328333669,1717177973067,-245.79876149,0.00036932,30]
[328333670,1717177973096,-900.0,0.00037,38]
[328333671,1717177973121,-1500.0,0.00037,60]
[328333672,1717177973146,-280.91287027,0.00037068,30]
[328333673,1717177973174,-245.79876149,0.00037068,30]
[328333674,1717177973201,-280.91287027,0.00037233,30]
[328333675,1717177973229,-245.79876149,0.00037233,30]
[328333676,1717177973255,-280.91287027,0.00037397,30]
[328333677,1717177973282,-245.79876149,0.00037397,30]
[328333678,1717177973312,-280.91287027,0.00037534,30]
[328333679,1717177973340,-245.79876149,0.00037534,30]
[328333680,1717177973368,-150.0,0.00037676,120]
[328333681,1717177973395,-280.91287027,0.00037699,30]
[328333682,1717177973422,-245.79876149,0.00037699,30]
[328333683,1717177973448,-280.91287027,0.00037836,30]
[328333684,1717177973478,-245.79876149,0.00037836,30]
[328333685,1717177973506,-150.0,0.00037939,120]
[328333686,1717177973535,-899.99999902,0.00038,39]
[328333687,1717177973560,-280.91287027,0.00038,30]
[328333688,1717177973587,-245.79876149,0.00038,30]
[328333689,1717177973612,-233.39676288,0.00038,30]
[328333690,1717177973640,-2397.89597559,0.00038,120]
[328333691,1717177973666,-280.91287027,0.00038164,30]
[328333692,1717177973692,-245.79876149,0.00038164,30]
[328333693,1717177973721,-1000.0,0.000382,120]
[328333694,1717177973751,-150.0,0.00038227,120]
[328333695,1717177973780,-280.91287027,0.00038301,30]
[328333696,1717177973806,-245.79876149,0.00038301,30]
[328333697,1717177974011,-280.91287027,0.00038466,30]
[328333698,1717177974036,-245.79876149,0.00038466,30]
[328333699,1717177974059,-888.29357583,0.000389,30]
[328333700,1717177974083,-1627.0,0.0003951,120]
[328333701,1717177974107,-1117.86258,0.00039588,30]
[328333702,1717177974132,-3000.0,0.00039726,90]
[328333703,1717177974155,-3000.0,0.00039726,90]
[328333704,1717177974178,-3000.0,0.00039726,90]
[328333705,1717177974201,-3000.0,0.00039726,90]
[328333706,1717177974225,-3000.0,0.00039726,90]
[328333707,1717177974247,-3000.0,0.00039726,90]
[328333708,1717177974271,-3000.0,0.00039726,90]
[328333709,1717177974296,-3000.0,0.00039726,90]
[328333710,1717177974322,-3000.0,0.00039726,90]
[328333711,1717177974345,-493.45203962,0.00039726,90]
[328333712,1717177974370,-150.0,0.00039734,120]
[328333713,1717177974395,-1117.86258,0.00039788,30]
[328333714,1717177974421,-1117.86258,0.00039988,30]
[328333715,1717177974447,-1470.23278675,0.0004,30]
[328333716,1717177974475,-1493.44901686,0.0004,120]
[328333717,1717177974500,-422.00754242,0.0004,30]
[328333718,1717177974524,-173.0936542,0.0004,120]
[328333719,1717177974562,-231.21306793,0.0004,30]
[328333720,1717177974593,-1024.0,0.0004,120]
[328333721,1717177974626,-1500639.4135349,0.0004,40]
[328333722,1717177981461,-1534248.08575952,0.0004,40]
[328333723,1717177981484,-1233.0,0.0004,120]
[328333724,1717177981508,-393.870191,0.0004001,30]
[328333725,1717177981535,-1117.86258,0.00040188,30]
[328333726,1717177981561,-607.95580885,0.0004025,120]
[328333727,1717177981584,-154.62185471,0.00040328,30]
[328333728,1717177981607,-154.3670907,0.00040559,30]
[328333729,1717177981632,-150.0,0.00040587,120]
[328333730,1717177981654,-1117.86258,0.00040588,30]
[328333731,1717177981676,-1117.86258,0.00040788,30]
[328333732,1717177981699,-562.0,0.000408,30]
[328333733,1717177981726,-160.27969954,0.00040882,30]
[328333734,1717177981748,-280.95399391,0.00040914,120]
[328333735,1717177981771,-1117.86258,0.00040988,30]
[328333736,1717177981794,-1027.94650152,0.00041,120]
[328333737,1717177981816,-510.0,0.00041095,120]
[328333738,1717177981839,-187.6287428,0.000411,120]
[328333739,1717177981862,-1117.86258,0.00041188,30]
[328333740,1717177981884,-269.7,0.000412,30]
[328333741,1717177981908,-562.0,0.000413,31]
[328333742,1717177981930,-510.0,0.00041369,120]
[328333743,1717177981953,-478.59038871,0.00041499,120]
[328333744,1717177981975,-4027.81061975,0.000415,30]
[328333745,1717177982000,-202.82780287,0.000416,120]
[328333746,1717177982022,-510.0,0.00041643,120]
[328333747,1717177982046,-562.0,0.000418,31]
[328333748,1717177982068,-269.7,0.00041872,30]
[328333749,1717177982090,-153.4057278,0.00041917,120]
[328333750,1717177982111,-1400.0,0.00041917,30]
[328333751,1717177982133,-2900.0,0.00041917,30]
[328333752,1717177982155,-2800.0,0.00041917,30]
[328333753,1717177982177,-700.0,0.00041917,30]
[328333754,1717177982200,-500.0,0.00041917,30]
[328333755,1717177982224,-150.0,0.00041918,30]
[328333756,1717177982247,-150.0,0.00041918,30]
[328333757,1717177982268,-150.0,0.00041918,30]
[328333758,1717177982290,-150.0,0.00041918,30]
[328333759,1717177982312,-150.0,0.00041918,30]
[328333760,1717177982334,-150.0,0.00041918,30]
[328333761,1717177982358,-150.0,0.00041918,30]
[328333762,1717177982381,-153.71960669,0.00041918,30]
[328333763,1717177982403,-151.82486644,0.00041918,30]
[328333764,1717177982425,-150.0,0.00041918,30]
[328333765,1717177982448,-150.0,0.00041918,30]
[328333766,1717177982475,-296.63962486,0.00041918,30]
[328333767,1717177982500,-150.0,0.00041918,30]
[328333768,1717177982523,-150.0,0.00041918,30]
[328333769,1717177982551,-150.0,0.00041918,30]
[328333770,1717177982573,-3200.7379856,0.00041918,60]
[328333771,1717177982595,-216.37767794,0.00041918,30]
[328333772,1717177982619,-289.75740628,0.00041918,120]
[328333773,1717177982642,-150.0,0.00041977,120]
[328333774,1717177982666,-600.0,0.00042,30]
[328333775,1717177982688,-897.13261416,0.00042,120]
[328333776,1717177982711,-500.0,0.00042,30]
[328333777,1717177982734,-500.0,0.00042,30]
[328333778,1717177982755,-500.0,0.00042,30]
[328333779,1717177982777,-500.0,0.00042,30]
[328333780,1717177982799,-500.0,0.00042,30]
[328333781,1717177982820,-500.0,0.00042,30]
[328333782,1717177982843,-500.0,0.00042,30]
[328333783,1717177982868,-573.0,0.00042,30]
[328333784,1717177982892,-500.0,0.00042,30]
[328333785,1717177982914,-500.0,0.00042,30]
[328333786,1717177982935,-500.0,0.00042,30]
[328333787,1717177983081,-500.0,0.00042,30]
[328333788,1717177983103,-572.0,0.00042,30]
[328333789,1717177983124,-176.55673857,0.00042,120]
[328333790,1717177983146,-811.91549763,0.00042,120]
[328333791,1717177983168,-3117.26476826,0.00042,120]
[328333792,1717177983189,-2773.0,0.00042,120]
[328333793,1717177983211,-1000.0,0.00042,120]
[328333794,1717177983235,-1037.0,0.00042034,30]
[328333795,1717177983257,-150.0,0.00042059,30]
[328333796,1717177983285,-152.72526121,0.00042112,30]
[328333797,1717177983310,-150.0,0.0004215,30]
[328333798,1717177983334,-150.0,0.000422,30]
[328333799,1717177983357,-562.0,0.000423,32]
[328333800,1717177983379,-150.0,0.00042306,30]
[328333801,1717177983401,-150.0,0.00042306,30]
[328333802,1717177983424,-150.0,0.00042341,30]
[328333803,1717177983446,-987.0,0.00042348,30]
[328333804,1717177983471,-150.0,0.00042383,30]
[328333805,1717177983493,-1400.0,0.00042465,30]
[328333806,1717177983519,-2900.0,0.00042465,30]
[328333807,1717177983542,-2800.0,0.00042465,30]
[328333808,1717177983565,-700.0,0.00042465,30]
[328333809,1717177983590,-500.0,0.00042465,30]
[328333810,1717177983612,-150.0,0.00042482,30]
[328333811,1717177983634,-150.0,0.00042616,30]
[328333812,1717177983656,-150.0,0.00042623,30]
[328333813,1717177983678,-154.27017071,0.00042628,30]
[328333814,1717177983700,-570.86881905,0.0004267,30]
[328333815,1717177983726,-150.0,0.00042694,30]
[328333816,1717177983748,-150.0,0.00042694,30]
[328333817,1717177983769,-150.0,0.00042694,30]
[328333818,1717177983793,-2386.0,0.000427,92]
[328333819,1717177983815,-150.0,0.00042764,30]
[328333820,1717177983837,-43011.78677554,0.000428,60]
[328333821,1717177983859,-568.641691,0.000428,32]
[328333822,1717177983882,-155.57019678,0.00042816,30]
[328333823,1717177983904,-150.0,0.00042849,30]
[328333824,1717177983926,-150.0,0.00042849,30]
[328333825,1717177983951,-150.0,0.00042905,30]
[328333826,1717177983976,-150.05942183,0.00042974,30]
[328333827,1717177984001,-732.19331034,0.00043,120]
[328333828,1717177984024,-1000.0,0.00043,120]
[328333829,1717177984050,-150.0,0.00043008,120]
[328333830,1717177984073,-1400.0,0.00043013,30]
[328333831,1717177984096,-2900.0,0.00043013,30]
[328333832,1717177984118,-700.0,0.00043013,30]
[328333833,1717177984140,-2800.0,0.00043013,30]
[328333834,1717177984162,-365.00954538,0.00043013,30]
[328333835,1717177984183,-150.0,0.00043047,30]
[328333836,1717177984206,-150.0,0.00043082,30]
[328333837,1717177984230,-150.0,0.00043082,30]
[328333838,1717177984252,-150.0,0.00043082,30]
[328333839,1717177984277,-30000.0,0.00043163,30]
[328333840,1717177984300,-150.0,0.00043188,30]
[328333841,1717177984322,-1989.40074814,0.000433,60]
[328333842,1717177984344,-150.0,0.00043315,30]
[328333843,1717177984365,-150.0,0.00043329,30]
[328333844,1717177984389,-150.0,0.0004347,30]
[328333845,1717177984412,-150.0,0.0004347,30]
[328333846,1717177984434,-150.0,0.0004347,30]
[328333847,1717177984462,-150.0,0.0004347,30]
[328333848,1717177984485,-150.0,0.0004347,30]
[328333849,1717177984509,-150.0,0.00043548,30]
[328333850,1717177984535,-291.44340529,0.00043561,30]
[328333851,1717177984558,-2000.0,0.00043561,30]
[328333852,1717177984580,-636.18602664,0.00043561,30]
[328333853,1717177984604,-1800.0,0.00043561,30]
[328333854,1717177984628,-151.42881608,0.00043567,30]
[328333855,1717177984652,-150.0,0.00043611,30]
[328333856,1717177984675,-150.0,0.00043752,30]
[328333857,1717177984698,-150.0,0.00043781,30]
[328333858,1717177984724,-150.0,0.00043781,30]
[328333859,1717177984746,-527.98099101,0.0004383,30]
[328333860,1717177984768,-276.42915539,0.0004383,30]
[328333861,1717177984791,-150.0,0.00043858,30]
[328333862,1717177984813,-150.0,0.00043858,30]
[328333863,1717177984835,-150.0,0.00043874,120]
[328333864,1717177984856,-150.0,0.00043893,30]
[328333865,1717177984879,-1771.45,0.00043897,30]
[328333866,1717177984903,-1771.45,0.00043897,30]
[328333867,1717177984925,-1771.45,0.00043897,30]
[328333868,1717177984948,-1771.45,0.00043897,30]
[328333869,1717177984971,-3200.7379856,0.00043918,60]
[328333870,1717177984998,-50000.0,0.00044,34]
[328333871,1717177985021,-466.39703942,0.00044,120]
[328333872,1717177985042,-1000.0,0.00044,120]
[328333873,1717177985063,-950.0,0.00044,120]
[328333874,1717177985084,-1000.0,0.00044,120]
[328333875,1717177985105,-241455.08677248,0.00044,120]
[328333876,1717177990113,-1758544.91322793,0.00044,120]
[328333877,1717177990136,-573.535828,0.00044,44]
[328333878,1717177990160,-150.0,0.00044013,30]
[328333879,1717177990184,-150.0,0.00044035,30]
[328333880,1717177990207,-150.05942183,0.00044043,30]
[328333881,1717177990233,-1771.45,0.00044171,30]
[328333882,1717177990256,-1771.45,0.00044171,30]
[328333883,1717177990278,-150.0,0.00044176,30]
[328333884,1717177990302,-176.29247061,0.000442,120]
[328333885,1717177990326,-1037.0,0.00044246,30]
[328333886,1717177990349,-1037.0,0.00044246,30]
[328333887,1717177990373,-150.0,0.00044246,30]
[328333888,1717177990397,-150.0,0.00044246,30]
[328333889,1717177990420,-150.0,0.00044246,30]
[328333890,1717177990443,-150.0,0.00044246,30]
[328333891,1717177990468,-166.66666668,0.00044306,30]
[328333892,1717177990494,-150.0,0.00044317,30]
[328333893,1717177990518,-1457.17090913,0.00044321,31]
[328333894,1717177990543,-150.0,0.00044352,120]
[328333895,1717177990569,-596.29356634,0.0004438,30]
[328333896,1717177990593,-596.29356634,0.0004438,30]
[328333897,1717177990616,-596.29356634,0.0004438,30]
[328333898,1717177990640,-596.29356634,0.0004438,30]
[328333899,1717177990664,-596.29356634,0.0004438,30]
[328333900,1717177990687,-596.29356634,0.0004438,30]
[328333901,1717177990711,-596.29356634,0.0004438,30]
[328333902,1717177990735,-596.29356634,0.0004438,30]
[328333903,1717177990758,-596.29356634,0.0004438,30]
[328333904,1717177990782,-596.29356634,0.0004438,30]
[328333905,1717177990806,-596.29356634,0.0004438,30]
[328333906,1717177990831,-596.29356634,0.0004438,30]
[328333907,1717177990853,-596.29356634,0.0004438,30]
[328333908,1717177990876,-596.29356634,0.0004438,30]
[328333909,1717177990901,-596.29356634,0.0004438,30]
[328333910,1717177990926,-596.29356634,0.0004438,30]
[328333911,1717177990949,-596.29356634,0.0004438,30]
[328333912,1717177990972,-596.29356634,0.0004438,30]
[328333913,1717177990995,-596.29356634,0.0004438,30]
[328333914,1717177991021,-596.79,0.0004438,30]
[328333915,1717177991043,-2385.24926537,0.0004438,30]
[328333916,1717177991068,-2385.24926537,0.0004438,30]
[328333917,1717177991090,-2385.24926537,0.0004438,30]
[328333918,1717177991113,-2385.24926537,0.0004438,30]
[328333919,1717177991136,-2385.24926537,0.0004438,30]
[328333920,1717177991159,-2385.24926537,0.0004438,30]
[328333921,1717177991182,-2385.24926537,0.0004438,30]
[328333922,1717177991205,-2385.24926537,0.0004438,30]
[328333923,1717177991228,-2385.24926537,0.0004438,30]
[328333924,1717177991250,-2385.24926537,0.0004438,30]
[328333925,1717177991273,-2385.24926537,0.0004438,30]
[328333926,1717177991297,-2385.24926537,0.0004438,30]
[328333927,1717177991320,-2385.24926537,0.0004438,30]
[328333928,1717177991343,-2385.24926537,0.0004438,30]
[328333929,1717177991365,-2385.24926537,0.0004438,30]
[328333930,1717177991387,-2385.24926537,0.0004438,30]
[328333931,1717177991410,-2385.24926537,0.0004438,30]
[328333932,1717177991433,-2385.24926537,0.0004438,30]
[328333933,1717177991456,-2385.24926537,0.0004438,30]
[328333934,1717177991482,-2385.74,0.0004438,30]
[328333935,1717177991505,-249.97742021,0.0004438,30]
[328333936,1717177991530,-249.97742021,0.0004438,30]
[328333937,1717177991556,-249.97742021,0.0004438,30]
[328333938,1717177991580,-249.97742021,0.0004438,30]
[328333939,1717177991604,-249.97742021,0.0004438,30]
[328333940,1717177991626,-249.97742021,0.0004438,30]
[328333941,1717177991650,-249.97742021,0.0004438,30]
[328333942,1717177991676,-249.97742021,0.0004438,30]
[328333943,1717177991699,-249.97742021,0.0004438,30]
[328333944,1717177991722,-249.97742021,0.0004438,30]
[328333945,1717177991744,-249.97742021,0.0004438,30]
[328333946,1717177991770,-249.97742021,0.0004438,30]
[328333947,1717177991794,-249.97742021,0.0004438,30]
[328333948,1717177991816,-249.97742021,0.0004438,30]
[328333949,1717177991839,-249.97742021,0.0004438,30]
[328333950,1717177991867,-249.97742021,0.0004438,30]
[328333951,1717177991891,-249.97742021,0.0004438,30]
[328333952,1717177991915,-249.97742021,0.0004438,30]
[328333953,1717177991939,-249.97742021,0.0004438,30]
[328333954,1717177991967,-250.47,0.0004438,30]
[328333955,1717177991991,-999.98468083,0.0004438,30]
[328333956,1717177992016,-999.98468083,0.0004438,30]
[328333957,1717177992039,-999.98468083,0.0004438,30]
[328333958,1717177992063,-999.98468083,0.0004438,30]
[328333959,1717177992087,-999.98468083,0.0004438,30]
[328333960,1717177992109,-999.98468083,0.0004438,30]
[328333961,1717177992132,-999.98468083,0.0004438,30]
[328333962,1717177992156,-999.98468083,0.0004438,30]
[328333963,1717177992179,-999.98468083,0.0004438,30]
[328333964,1717177992202,-999.98468083,0.0004438,30]
[328333965,1717177992228,-999.98468083,0.0004438,30]
[328333966,1717177992252,-999.98468083,0.0004438,30]
[328333967,1717177992277,-999.98468083,0.0004438,30]
[328333968,1717177992300,-999.98468083,0.0004438,30]
[328333969,1717177992322,-999.98468083,0.0004438,30]
[328333970,1717177992346,-999.98468083,0.0004438,30]
[328333971,1717177992369,-999.98468083,0.0004438,30]
[328333972,1717177992392,-999.98468083,0.0004438,30]
[328333973,1717177992523,-999.98468083,0.0004438,30]
[328333974,1717177992549,-1000.48,0.0004438,30]
[328333975,1717177992573,-182.46118605,0.0004438,30]
[328333976,1717177992596,-182.46118605,0.0004438,30]
[328333977,1717177992618,-182.46118605,0.0004438,30]
[328333978,1717177992642,-182.46118605,0.0004438,30]
[328333979,1717177992666,-182.46118605,0.0004438,30]
[328333980,1717177992689,-182.46118605,0.0004438,30]
[328333981,1717177992714,-182.46118605,0.0004438,30]
[328333982,1717177992738,-182.46118605,0.0004438,30]
[328333983,1717177992761,-182.46118605,0.0004438,30]
[328333984,1717177992785,-182.46118605,0.0004438,30]
[328333985,1717177992809,-182.46118605,0.0004438,30]
[328333986,1717177992832,-182.46118605,0.0004438,30]
[328333987,1717177992859,-182.46118605,0.0004438,30]
[328333988,1717177992882,-182.46118605,0.0004438,30]
[328333989,1717177992905,-182.46118605,0.0004438,30]
[328333990,1717177992927,-182.46118605,0.0004438,30]
[328333991,1717177992949,-182.46118605,0.0004438,30]
[328333992,1717177992972,-182.46118605,0.0004438,30]
[328333993,1717177992994,-182.46118605,0.0004438,30]
[328333994,1717177993016,-182.96,0.0004438,30]
[328333995,1717177993039,-729.91974421,0.0004438,30]
[328333996,1717177993064,-729.91974421,0.0004438,30]
[328333997,1717177993086,-729.91974421,0.0004438,30]
[328333998,1717177993108,-729.91974421,0.0004438,30]
[328333999,1717177993132,-729.91974421,0.0004438,30]
[328334000,1717177993155,-729.91974421,0.0004438,30]
[328334001,1717177993178,-729.91974421,0.0004438,30]
[328334002,1717177993201,-729.91974421,0.0004438,30]
[328334003,1717177993224,-729.91974421,0.0004438,30]
[328334004,1717177993246,-729.91974421,0.0004438,30]
[328334005,1717177993269,-729.91974421,0.0004438,30]
[328334006,1717177993292,-729.91974421,0.0004438,30]
[328334007,1717177993316,-729.91974421,0.0004438,30]
[328334008,1717177993339,-729.91974421,0.0004438,30]
[328334009,1717177993364,-729.91974421,0.0004438,30]
[328334010,1717177993386,-729.91974421,0.0004438,30]
[328334011,1717177993408,-729.91974421,0.0004438,30]
[328334012,1717177993431,-729.91974421,0.0004438,30]
[328334013,1717177993453,-729.91974421,0.0004438,30]
[328334014,1717177993480,-730.41,0.0004438,30]
[328334015,1717177993504,-240.2120338,0.0004438,30]
[328334016,1717177993526,-240.2120338,0.0004438,30]
[328334017,1717177993551,-240.2120338,0.0004438,30]
[328334018,1717177993573,-240.2120338,0.0004438,30]
[328334019,1717177993595,-240.2120338,0.0004438,30]
[328334020,1717177993616,-240.2120338,0.0004438,30]
[328334021,1717177993638,-240.2120338,0.0004438,30]
[328334022,1717177993660,-240.2120338,0.0004438,30]
[328334023,1717177993683,-240.2120338,0.0004438,30]
[328334024,1717177993706,-240.2120338,0.0004438,30]
[328334025,1717177993731,-240.2120338,0.0004438,30]
[328334026,1717177993753,-240.2120338,0.0004438,30]
[328334027,1717177993776,-240.2120338,0.0004438,30]
[328334028,1717177993798,-240.2120338,0.0004438,30]
[328334029,1717177993820,-240.2120338,0.0004438,30]
[328334030,1717177993842,-240.2120338,0.0004438,30]
[328334031,1717177993864,-240.2120338,0.0004438,30]
[328334032,1717177993887,-240.2120338,0.0004438,30]
[328334033,1717177993909,-240.2120338,0.0004438,30]
[328334034,1717177993931,-240.71,0.0004438,30]
[328334035,1717177993954,-960.92313522,0.0004438,30]
[328334036,1717177993978,-960.92313522,0.0004438,30]
[328334037,1717177994001,-960.92313522,0.0004438,30]
[328334038,1717177994024,-960.92313522,0.0004438,30]
[328334039,1717177994048,-960.92313522,0.0004438,30]
[328334040,1717177994071,-960.92313522,0.0004438,30]